Cogmind - Beta 9 *** ADVENTURER MODE // 2019.10.23 @ 12:12:46 Player: Demise Result: Destroyed by D-53 Grenadier with Mini Grenade Launcher Performance ------------- Evolutions (1) 500 Regions Visited (4) 800 Robots Destroyed (58) 290 Value Destroyed (1017) 1017 Prototype IDs (1) 20 Alien Tech Used (0) 0 Bonus (11) 11 TOTAL SCORE: 2638 Bonus ------- High Alert Combat Kills 11 Cogmind --------- Core Integrity 0/400 Matter 238/300 Energy 68/100 System Corruption 0% Temperature Cool (0) Location -9/Mines Parts ------- Power (1) Propulsion (2) Utility (2) Large Storage Unit Large Storage Unit Weapon (4) Improved Light Cannon Inventory (16) Large Storage Unit Large Storage Unit High-capacity Matter Pod (200) Improved Terrain Scanner Datajack Mining Laser Explosive Trap Peak State ------------ Power Ion Engine Propulsion Armored Wheel Armored Wheel Utility Improved Heat Sink Large Storage Unit Weapon Advanced Beam Cannon Light Assault Rifle Heavy Assault Rifle Rocket Launcher Inventory Large Storage Unit Large Storage Unit Large Storage Unit High-capacity Matter Pod Improved Terrain Scanner Light Assault Rifle Improved Light Cannon Datajack Mining Laser Explosive Trap [Rating: 18] Favorites ----------- Power Ion Engine Engine Ion Engine Propulsion Aluminum Leg Leg Aluminum Leg Wheel Armored Wheel Utility Small Storage Unit Device Improved Terrain Scanner Storage Small Storage Unit Protection Light Armor Plating Weapon Light Assault Rifle Energy Gun EM Pulse Gun Energy Cannon Advanced Beam Cannon Ballistic Gun Light Assault Rifle Ballistic Cannon Improved Light Cannon Launcher Rocket Launcher Special Weapon Mining Laser Build | -11 -10 -10 -9 -9 ------- Run | Scr Mat Min Mat Min Slots Evolved 2 | . . . 2 . Power . | . . . . . Propulsion . | . . . . . Utility . | . . . . . Weapon 2 | . . . 2 . Parts Attached 36 | 2 6 11 13 4 Power 1 | . . 1 . . Engine 1 | . . 1 . . Core . | . . . . . Reactor . | . . . . . Propulsion 5 | . . 3 2 . Treads . | . . . . . Leg 3 | . . 3 . . Wheel 2 | . . . 2 . Hover . | . . . . . Flight . | . . . . . Utility 7 | 1 1 . 4 1 Device 4 | 1 1 . 2 . Storage 2 | . . . 1 1 Processor . | . . . . . Hackware . | . . . . . Protection 1 | . . . 1 . Artifact . | . . . . . Weapon 23 | 1 5 7 7 3 Energy Gun 6 | 1 3 . 2 . Energy Cannon 2 | . . . 2 . Ballistic Gun 8 | . 1 4 2 1 Ballistic Cannon 1 | . . . . 1 Launcher 2 | . . 1 . 1 Special Weapon 4 | . 1 2 1 . Impact Weapon . | . . . . . Slashing Weapon . | . . . . . Piercing Weapon . | . . . . . Special Melee Weapon . | . . . . . Unidentified Prototypes 1 | . . . 1 . Parts Lost 13 | . 1 2 1 9 Power 1 | . . . . 1 Propulsion 2 | . . . . 2 Utility 2 | . . 1 . 1 Weapon 8 | . 1 1 1 5 Highest Loss Streak 9 | . 1 2 1 9 Average Slot Usage (%) 96 | . 98 98 92 85 Engine 12 | . 14 14 11 9 Leg 19 | . 28 28 3 . Wheel 6 | . . . 18 18 Device 10 | . 12 12 7 9 Storage 12 | . 14 14 11 11 Energy Gun 7 | . 23 1 5 . Energy Cannon 3 | . . . 9 7 Ballistic Gun 17 | . . 24 22 20 Special Weapon 2 | . 3 1 3 5 Naked Turns . | . . . . . Heaviest Build 34 | 14 14 15 31 34 Greatest Support 24 | 20 20 20 24 24 Greatest Overweight (x) 5 | . . . 1 5 Average Overweight (x) . | . . . . 1 Largest Inventory Capacity 16 | 6 6 6 10 16 Average Capacity 6 | 6 6 6 7 10 Most Carried 10 | 6 6 6 10 10 Average Carried 6 | 5 5 5 7 9 Final Capacity 16 | . . . . 16 Final Carried 7 | . . . . 7 Class Distribution -------------------- 72% | Mutant 12% | Scavenger-Gunner 7% | Gunner 6% | Scavenger-Mutant Dominant Class ---------------- Mutant | -10/Materials Mutant | -10/Mines Scavenger-Gunner | -9/Materials Scavenger-Gunner | -9/Mines Resources | -11 -10 -10 -9 -9 ----------- Run | Scr Mat Min Mat Min Matter Collected 871 | 243 142 251 205 30 Remotely . | . . . . . Salvage Created 1633 | 227 290 257 687 172 Parts 102 | 16 22 24 28 12 Haulers Intercepted 2 | . 1 . 1 . Recyclers Shooed . | . . . . . Parts Field Recycled . | . . . . . Retrieved Matter . | . . . . . Parts Self-Destructed . | . . . . . Prevented . | . . . . . Kills | -11 -10 -10 -9 -9 ------- Run | Scr Mat Min Mat Min Combat Hostiles Destroyed 41 | . 9 13 14 5 Guns 27 | . 8 9 7 3 Cannons 7 | . . . 5 2 AOE 7 | . 1 4 2 . Classes Destroyed 10 | 3 3 1 2 1 Worker 5 | 2 . 1 1 1 Tunneler 6 | 5 . . . 1 Hauler 2 | . 1 . 1 . Recycler 3 | 1 . . 1 1 Watcher 1 | . . . 1 . Swarmer 21 | . 6 9 3 3 Grunt 17 | . 3 3 10 1 Sentry 1 | . . . 1 . Demolisher 1 | . . . . 1 Assembled 1 | . . 1 . . Best Kill Streak 6 | 3 3 5 6 5 Combat Bots Only 5 | . 3 5 4 3 Max Kills in Single Turn 4 | 1 1 4 2 2 Gunslinging 1 | . . 1 . . Exploded 3 | . 1 3 2 . Melee . | . . . . . Uniques/NPCs Destroyed . | . . . . . Combat | -11 -10 -10 -9 -9 -------- Run | Scr Mat Min Mat Min Damage Taken 1824 | . 206 294 303 1021 Core 490 | . 28 32 19 411 Absorbed by Shields . | . . . . . Core Remaining (%) 88 | 100 . 76 . . Volleys Fired 118 | 18 22 35 32 11 Largest 4 | 2 2 2 4 4 Hottest 167 | 100 100 100 167 144 Shots Fired 272 | 36 41 58 105 32 Gun 218 | 36 39 46 76 21 Cannon 34 | . . . 27 7 Launcher 5 | . . 1 . 4 Special 15 | . 2 11 2 . Kinetic 119 | . . 41 56 22 Thermal 88 | 24 21 16 21 6 Explosive 5 | . . 1 . 4 Electromagnetic 60 | 12 20 . 28 . Robot Hit Streak 20 | 8 14 11 20 6 Robot Miss Streak 4 | 1 2 3 3 4 Penetration Max . | . . . . . Secondary Targets 5 | . 3 2 . . Max Gunslinging Chain 1 | . 1 1 . . Shots Hit Robots 175 | 25 31 34 68 17 Core Hits 96 | 9 13 25 30 19 Critical Hits 5 | . . . 4 1 Critical Kills 2 | . . . 2 . Critical Parts Destroyed 3 | . . . 2 1 Melee Attacks . | . . . . . Impact . | . . . . . Slashing . | . . . . . Piercing . | . . . . . Sneak Attacks . | . . . . . Combat Hostiles . | . . . . . Follow-up Attacks . | . . . . . Damage Inflicted 2911 | 296 472 480 1226 437 Guns 1549 | 296 386 312 465 90 Cannons 545 | . . . 460 85 Explosions 809 | . 78 168 301 262 Melee . | . . . . . Ramming 8 | . 8 . . . Kinetic 641 | . . 275 253 113 Thermal 805 | 165 253 37 288 62 Explosive 664 | . . 168 234 262 Electromagnetic 793 | 131 211 . 451 . Impact . | . . . . . Slashing . | . . . . . Piercing . | . . . . . Highest Corruption . | . . . . . Average Corruption . | . . . . . Corruption Purged . | . . . . . Overload Shots . | . . . . . Overflow Damage 47 | . . . 47 . Projectiles 8 | . . . 8 . Explosions 39 | . . . 39 . Melee . | . . . . . Knockbacks . | . . . . . Impact . | . . . . . Kinetic . | . . . . . Secondary . | . . . . . Self-Inflicted Damage 90 | . . 23 67 . Shots 2 | . . 1 1 . Rammed . | . . . . . Targets Rammed 1 | . 1 . . . Kicked 1 | . 1 . . . Crushed . | . . . . . Highest Temperature 393 | 234 130 50 393 33 Average Temperature 70 | 64 42 15 143 11 Received Heat Transfer 411 | . 72 114 141 84 Effects 2 | . . . 2 . Interference 2 | . . . 2 . Siege Activations . | . . . . . Robots Corrupted . | . . . . . Combat Hostiles . | . . . . . Parts Fried 5 | . 1 . 4 . Impact Corruptions . | . . . . . Robots Melted . | . . . . . Combat Hostiles . | . . . . . Parts Melted 1 | . . . 1 . Heat Transferred 1865 | 481 618 111 544 111 Parts Sabotaged . | . . . . . Parts Stolen . | . . . . . Parts Stripped . | . . . . . Power Chain Reactions 3 | . 2 . 1 . Missiles Intercepted . | . . . . . Alert | -11 -10 -10 -9 -9 ------- Run | Scr Mat Min Mat Min Peak Influence 401 | 40 244 220 401 181 Average Influence 124 | 20 80 101 215 156 Maximum Alert Level 2 | . 1 1 2 . Low Security (%) 75 | . . . . . Level 1 21 | . . . . . Level 2 3 | . . . . . Level 3 . | . . . . . Level 4 . | . . . . . Level 5 . | . . . . . High Security . | . . . . . Max Security . | . . . . . Squads Dispatched 4 | . 1 . 3 . Investigation 2 | . 1 . 1 . Extermination . | . . . . . Reinforcement 2 | . . . 2 . Assault . | . . . . . Garrison . | . . . . . Intercept . | . . . . . Construction Impeded 1 | . . . 1 . Haulers Reinforced . | . . . . . Stealth | -11 -10 -10 -9 -9 --------- Run | Scr Mat Min Mat Min Distress Signals 5 | . 2 . 3 . Communications Jammed . | . . . . . Distress Signals . | . . . . . Times Spotted 67 | . 12 15 33 7 Peak Tracking Total 8 | . 5 5 8 5 Tactical Retreats 4 | . 1 2 1 . Traps | -11 -10 -10 -9 -9 ------- Run | Scr Mat Min Mat Min Traps Triggered 2 | . 1 . 1 . Indirectly . | . . . . . Trap Hack Attempts . | . . . . . Triggered . | . . . . . Disarmed . | . . . . . Reprogrammed . | . . . . . Reused 1 | . . 1 . . Traps Extracted . | . . . . . Installed 2 | . . 2 . . Triggered . | . . . . . Machines | -11 -10 -10 -9 -9 ---------- Run | Scr Mat Min Mat Min Machines Disabled 2 | . . . 2 . Max in Single Turn 2 | . . . 2 . Machines Sabotaged . | . . . . . Garrisons Compromised . | . . . . . Overloaded Fab Kills . | . . . . . Fab Network Shutdowns . | . . . . . Hacking | -11 -10 -10 -9 -9 --------- Run | Scr Mat Min Mat Min Machines Accessed 6 | . 3 . 3 . Terminals 4 | . 2 . 2 . Fabricators . | . . . . . Repair Stations 1 | . 1 . . . Recycling Units . | . . . . . Scanalyzers 1 | . . . 1 . Garrison Access . | . . . . . Total Hacks 12 | . 7 . 5 . Successful 9 | . 4 . 5 . Failed 3 | . 3 . . . Catastrophic 1 | . 1 . . . Database Lockouts . | . . . . . Manual 6 | . 3 . 3 . Terminals 8 | . 5 . 3 . Fabricators . | . . . . . Repair Stations 2 | . 2 . . . Recycling Units . | . . . . . Scanalyzers 2 | . . . 2 . Garrison Access . | . . . . . Terminal Hacks 2 | . 1 . 1 . Branch Access Points 1 | . . . 1 . Zone Layout 1 | . 1 . . . Fabricator Hacks . | . . . . . Repair Station Hacks 2 | . 2 . . . Scan Component 1 | . 1 . . . Repair 1 | . 1 . . . Recycling Unit Hacks . | . . . . . Scanalyzer 2 | . . . 2 . Insert Component 1 | . . . 1 . Analyze 1 | . . . 1 . Garrison Access Hacks . | . . . . . Unauthorized Hacks 6 | . 2 . 4 . Terminals 3 | . 1 . 2 . Botnet 3 | . 1 . 2 . Fabricators . | . . . . . Repair Stations . | . . . . . Recycling Units . | . . . . . Scanalyzers . | . . . . . Garrison Access . | . . . . . Data Cores Recovered . | . . . . . Used . | . . . . . Hacking Detections 3 | . 3 . . . Full Trace Events . | . . . . . Feedback Events . | . . . . . Feedback Blocked . | . . . . . Robot Schematics Acquired . | . . . . . Robots Built . | . . . . . Matter . | . . . . . Time . | . . . . . Total Robot Build Rating . | . . . . . Part Schematics Acquired 1 | . . . 1 . Parts Built . | . . . . . Matter . | . . . . . Time . | . . . . . Total Part Build Rating . | . . . . . Parts Repaired 1 | . 1 . . . Time 32 | . 32 . . . Parts Recycled . | . . . . . Recycled Matter . | . . . . . Retrieved Matter . | . . . . . Retrieved Components . | . . . . . Parts Scanalyzed 1 | . . . 1 . Part Schematics Acquired 1 | . . . 1 . Parts Damaged . | . . . . . Bothacking | -11 -10 -10 -9 -9 ------------ Run | Scr Mat Min Mat Min Used RIF Installer . | . . . . . Robots Hacked . | . . . . . Non-combat . | . . . . . Combat . | . . . . . Robot Hacks Applied . | . . . . . Relay Couplers Released . | . . . . . Robots Rewired . | . . . . . Allies Hacked . | . . . . . Hacks Repelled . | . . . . . Allies | -11 -10 -10 -9 -9 -------- Run | Scr Mat Min Mat Min Total Allies . | . . . . . Largest Group . | . . . . . Highest-Rated Group . | . . . . . Highest-Rated Ally . | . . . . . Total Orders . | . . . . . Ally Attacks . | . . . . . Total Damage . | . . . . . Kills . | . . . . . Allies Corrupted . | . . . . . Allies Melted . | . . . . . Intel | -11 -10 -10 -9 -9 ------- Run | Scr Mat Min Mat Min Robot Analysis Total . | . . . . . Derelict Logs Recovered 3 | . . 3 . . Drone Launches . | . . . . . Drone Recoveries . | . . . . . Exploration | -11 -10 -10 -9 -9 ------------- Run | Scr Mat Min Mat Min Turns Passed 1945 | 151 412 771 549 62 Spaces Moved 1184 | 55 235 503 367 24 Core 2 | . . . . 2 Treads . | . . . . . Legs 849 | 55 235 503 56 . Wheels 333 | . . . 311 22 Hover . | . . . . . Flight . | . . . . . Fastest Speed 90 | 120 120 120 90 90 Average Speed 113 | 120 120 120 98 115 Slowest Speed 300 | 120 120 120 120 300 Overloaded Moves . | . . . . . Propulsion Burnouts . | . . . . . Robots Hopped . | . . . . . Cave-ins Triggered . | . . . . . Exploration Rate (%) 38 | 3 54 80 41 12 Regions Visited 4 Branch Regions 2 Pre-discovered Areas 1 | . . 1 . . Known Exits Taken 1 | . . . 1 . Unknown Exits Taken 3 | 1 1 1 . . Scrap Searched 2 | . . 2 . . Spaces Dug 9 | . 2 6 1 . Terrain Destroyed 98 | . 11 16 32 39 Melee . | . . . . . Projectile 9 | . 2 6 1 . AOE 89 | . 9 10 31 39 Actions | -11 -10 -10 -9 -9 --------- Run | Scr Mat Min Mat Min Total 1550 | 105 320 600 486 39 Wait 166 | 23 51 33 59 . Move 1180 | 54 234 502 366 24 Hop . | . . . . . Pick Up 19 | 4 3 6 6 . Fast Attach 11 | 1 2 2 6 . Attach 5 | . 1 . 1 3 Detach . | . . . . . Swap 20 | 1 3 9 6 1 Drop 28 | 4 3 11 10 . Fire 118 | 18 22 35 32 11 Melee . | . . . . . Ram . | . . . . . Kick 1 | . 1 . . . Crush . | . . . . . Escape Stasis . | . . . . . Rewire . | . . . . . Trap 2 | . . 2 . . Miscellaneous . | . . . . . Route ------- -11/Scrapyard -10/Materials (discovered 2 exits: *Mat / [*Min]) -10/Mines (discovered 2 exits: *Mat x2) -9/Materials (discovered 3 exits: *Mat x2 / *Min) -9/Mines (discovered 1 exit: *Mat) History --------- Turn | Location | Event 21 | -11/Scrapyard | Discovered new exit (range 3) 152 | -11/Scrapyard | Entered Materials 270 | -10/Materials | Repaired Imp. Terrain Scanner 316 | -10/Materials | Build established: Mutant 417 | -10/Materials | Discovered new exit (range 10) 530 | -10/Materials | Discovered new exit (range 16) 564 | -10/Materials | Entered Mines 759 | -10/Mines | Learned location of Zion (-6) 870 | -10/Mines | Received a Rocket Launcher from a helpful Derelict 909 | -10/Mines | Discovered new exit (range 10) 931 | -10/Mines | Found a hidden stash of uninstalled traps 1036 | -10/Mines | Discovered new exit (range 9) 1184 | -10/Mines | Learned location of 1 exit from Materials 1194 | -10/Mines | Excavation squad dispatched 1194 | -10/Mines | A large section of the Mines collapsed 1335 | -10/Mines | Entered Materials 1335 | -9/Materials | Evolved 2 slots: Weapon x2 1336 | -9/Materials | Identified exit to Materials 1754 | -9/Materials | Discovered exit to Materials (range 9) 1834 | -9/Materials | Identified exit to Mines 1884 | -9/Materials | Entered Mines 1885 | -9/Mines | Assembled infested the area 1927 | -9/Mines | Discovered exit to Materials (range 13) 1937 | -9/Mines | Core integrity fell below 50% 1943 | -9/Mines | Core integrity fell below 20% 1946 | -9/Mines | Destroyed by D-53 Grenadier with Mini Grenade Launcher Last Messages --------------- 01930_ G-34 Mercenary destroyed. 01930_ T-07 Excavator destroyed. 01930_ Rocket Launcher destroyed. 01930_ Lgt. Assault Rifle destroyed. 01932_ Hvy. Assault Rifle destroyed. 01934_ The unstable cave ceiling collapses. 01934_ Lgt. Assault Rifle destroyed. 01935_ The unstable cave ceiling collapses. 01936_ Arm. Wheel destroyed. 01938_ Ion Engine destroyed. 01938_ Arm. Wheel destroyed. 01938_ Imp. Heat Sink destroyed. 01938_ K-01 Serf collects debris. 01942_ The unstable cave ceiling collapses. 01942_ K-01 Serf collects debris. 01943_ The unstable cave ceiling collapses. 01944_ K-01 Serf destroyed. 01944_ K-01 Serf collects debris. 01945_ The unstable cave ceiling collapses. 01946_ D-53 Grenadier destroyed. Map ----- +----------------------------------------------------+ | ?????????????????????????????????????????????????? | | ?????????????????????????????????????????????????? | | ?????????????????????????????????????????????????? | | ?????????????????????????????????????????????????? | | ?????????????????????????????????????????????????? | | ?????????????????????????????????????????????????? | | ?????????????????????????????????????????????????? | | ?????????????????????????????????????????????????? | | ?????????????????????????????????????????????????? | | ?????????????????????????????????????????????????? | | ?????????????????????????????????????????????????? | | ?????????????????????????????#???????????????????? | | ????????????????????????????ka?? ????????????????? | | ????????????????????????????a#?? ????????????????? | | ????????????????????????####%#?? ????????????????? | | ???????????????????????## #%##? ????????????????? | | ???????????????????????# a ## ????????????????? | | ???????????????????????# ? ??""" ?????????? | | ???????????????????????# a # ## ##""" ????????? | | ????????????????#??????# ? ???????? | | ????????????????# ###### k ?## < ???????? | | ????????????????? $ * #? # #???????? | | ??????????????????? ## ##???????? | | ????????????????????# # !## ??????? | | ????????????????????# # %*% ??????? | | ????????????????????# # @ g | ???????? | | ????????????????????# #???????????? | | ????????????????????## d g #???????????? | | ????????????????????# # #???????????? | | ????????????????????## #???????????? | | ???????????????????? ##???????????? | | ??????????????????? ## #????????????? | | ?????????????????# ?# #????????????? | | ?????????????????# #?# # #????????????? | | ?????????????????# a ??# # #????????????? | | ?????????????????##< ??# ## ###????????????? | | ??????????????????# %?? # ######??????????????? | | ??????????????????## ? ##????????????????????? | | ???????????????????#?######??????????????????????? | | ?????????????????????????????????????????????????? | | ?????????????????????????????????????????????????? | | ?????????????????????????????????????????????????? | | ?????????????????????????????????????????????????? | | ?????????????????????????????????????????????????? | | | | | | | | | | | | | +----------------------------------------------------+ Best States ------------- Heat Dissipation 42 Energy Generation 10 Energy Capacity 250 Matter Stores 300 Matter Capacity 300 Sight Range 16 Terrain Scan Range 16 Terrain Scan Density 10 Resistance: KI 20 Resistance: TH 20 Resistance: EX 20 Resistance: EM 20 Resistance: I 20 Resistance: S 20 Resistance: P 20 Evasion (%) 42 Item Schematics ----------------- Lrg. Storage Unit | -9/Materials | Scanalyzed Robot Schematics ------------------ None Fabricated ------------ Nothing Alien Tech Used ----------------- None Achievements -------------- None Challenges ------------ None Game ------ Seed LinearArmorPit Manual? 0 Play Time 00:22:46 Cumulative 99.0 hours Start 2019.10.23 @ 11:51:20 End 2019.10.23 @ 12:12:46 Sessions 1 Manual Loads 0 Difficulty Adventurer Special Mode None Game No. 136 Rogue 120 Adventurer 8 Explorer 0 Win Type - Total 0 Types 0/0/0/0/0/0/0 Lore% 40 Gallery% 51 Achievement% 34 Wizard Run 0 Options --------- ASCII 0 Keyboard 0 Movement Numpad Keybinds 0 Fullscreen 1 Font 12/Terminus Map View 83x54 Tactical HUD 1 Map Filters NONE Filters NONE Steam 1 RUN: 23471e3b-fa0b-4fa1-8ddb-c356bdb73712